[Event "2nd Cambridge Open 2024"]
[Site "Cambridge"]
[Date "2024.02.22"]
[Round "6.31"]
[White "Woods, Yannick"]
[Black "Payne, Matthew J"]
[Result "0-1"]
[ECO "E69"]
[WhiteElo "1856"]
[BlackElo "2091"]
[Annotator "RC"]
[PlyCount "70"]
[EventDate "2024.02.18"]
[EventType "swiss"]
[EventCountry "ENG"]
[SourceTitle "playchess.com"]
[Source "ChessBase"]
[SourceQuality "1"]
[TimeControl "5400+30"]

1. d4 {[%emt 0:00:06]} Nf6 {[%emt 0:00:18]} 2. c4 {[%emt 0:00:10]} g6 {[%emt 0:00:08]} 3. g3 {[%emt 0:00:04]} Bg7 {[%emt 0:00:08]} 4. Bg2 {[%emt 0:00:07]} O-O {[%emt 0:00:12]} 5. Nc3 {[%emt 0:00:06]} d6 {[%emt 0:00:11]} 6. h3 {[%emt 0:00:05]} c6 {[%emt 0:06:27]} 7. Nf3 {[%emt 0:06:17]} Qc7 {[%emt 0:04:12]} 8. O-O {[%emt 0:00:44]} e5 {[%emt 0:01:38]} 9. e4 {[%emt 0:01:49]} Nbd7 {[%emt 0:03:21]} 10. Be3 {[%emt 0:01:04]} exd4 {[%emt 0:07:55]} 11. Nxd4 {[%emt 0:02:29]} Nc5 {[%emt 0:00:10]} 12. b4 {[%emt 0:05:52]} Ne6 {[%emt 0:00:08]} 13. Nce2 {[%emt 0:01:53]} Re8 {[%emt 0:11:02]} 14. Qc2 {[%emt 0:03:54]} Nxd4 {[%emt 0:07:45]} 15. Nxd4 {[%emt 0:04:05]} Qe7 {[%emt 0:00:08]} 16. Bg5 {[%emt 0:12:51]} h6 {[%emt 0:00:23]} 17. Bxf6 {[%emt 0:00:04]} Bxf6 {[%emt 0:05:24]} 18. Rad1 {[%emt 0:00:41]} Bd7 {[%emt 0:05:56]} 19. c5 {[%emt 0:18:13]} dxc5 {[%emt 0:02:35]} 20. bxc5 {[%emt 0:01:12]} Rad8 {[%emt 0:02:00]} 21. Qc4 {[%emt 0:10:20]} Bxh3 {[%emt 0:00:25]} 22. Bxh3 {[%emt 0:00:17]} Qxe4 {[%emt 0:00:04]} 23. Rfe1 {[%emt 0:03:43]} Qxe1+ {[%emt 0:00:41]} 24. Rxe1 {[%emt 0:00:01]} Rxe1+ {[%emt 0:00:01]} 25. Kg2 {[%emt 0:00:24]} Rxd4 {[%emt 0:00:17]} 26. Qc3 {[%emt 0:01:49]} Rg1+ {[%emt 0:00:24]} 27. Kh2 {[%emt 0:00:45]} Rh1+ {[%emt 0:00:16]} 28. Kg2 {[%emt 0:00:01]} Rxh3 {[%emt 0:00:01]} 29. Qf3 {[%emt 0:00:17]} Rh5 {[%emt 0:01:57]} 30. Qxf6 {[%emt 0:00:07]} Rd2 {[%emt 0:00:15]} 31. Qe7 {[%emt 0:01:09]} Rf5 {[%emt 0:00:25]} 32. Qxb7 {[%emt 0:00:19]} Rfxf2+ {[%emt 0:00:19]} 33. Kh3 {[%emt 0:01:22]} Rh2+ {[%emt 0:00:21]} 34. Kg4 {[%emt 0:00:01]} Rdf2 {[%emt 0:00:10]} 35. Qxc6 {[%emt 0:00:50]} f5# {[%emt 0:00:42]} 0-1

[Event "2nd Cambridge Open 2024"]
[Site "Cambridge"]
[Date "2024.02.22"]
[Round "6.32"]
[White "Skettos, Nicolas"]
[Black "Brett, Andrew R"]
[Result "1/2-1/2"]
[ECO "C47"]
[WhiteElo "1880"]
[BlackElo "2072"]
[Annotator "RC"]
[PlyCount "57"]
[EventDate "2024.02.18"]
[EventType "swiss"]
[EventCountry "ENG"]
[SourceTitle "playchess.com"]
[Source "ChessBase"]
[SourceQuality "1"]
[TimeControl "5400+30"]

1. e4 {[%emt 0:00:03]} e5 {[%emt 0:00:06]} 2. Nf3 {[%emt 0:00:06]} Nc6 {[%emt 0:00:07]} 3. Nc3 {[%emt 0:00:10]} Nf6 {[%emt 0:00:18]} 4. d4 {[%emt 0:00:03]} exd4 {[%emt 0:00:11]} 5. Nxd4 {[%emt 0:00:02]} Bb4 {[%emt 0:00:33]} 6. Nxc6 {[%emt 0:00:06]} bxc6 {[%emt 0:00:10]} 7. Bd3 {[%emt 0:00:04]} d5 {[%emt 0:00:25]} 8. exd5 {[%emt 0:00:06]} cxd5 {[%emt 0:00:06]} 9. O-O {[%emt 0:00:05]} O-O {[%emt 0:00:22]} 10. Bg5 {[%emt 0:00:16]} c6 {[%emt 0:01:26]} 11. Qf3 {[%emt 0:00:06]} h6 {[%emt 0:01:43]} 12. Bxf6 {[%emt 0:00:08]} Qxf6 {[%emt 0:00:06]} 13. Qxf6 {[%emt 0:00:02]} gxf6 {[%emt 0:00:10]} 14. Ne2 {[%emt 0:00:26]} Rb8 {[%emt 0:00:28]} 15. Nd4 {[%emt 0:16:41]} Rb6 {[%emt 0:03:00]} 16. Nf5 {[%emt 0:00:53]} Bxf5 {[%emt 0:01:45]} 17. Bxf5 {[%emt 0:00:03]} Re8 {[%emt 0:00:52]} 18. b3 {[%emt 0:02:57]} Re5 {[%emt 0:01:57]} 19. g4 {[%emt 0:06:59]} Kf8 {[%emt 0:19:08]} 20. Rad1 {[%emt 0:01:07]} Ra6 {[%emt 0:01:25]} 21. a4 {[%emt 0:00:19]} Rb6 {[%emt 0:00:17]} 22. Rd3 {[%emt 0:04:26]} a5 {[%emt 0:00:59]} 23. Rfd1 {[%emt 0:01:47]} Bc5 {[%emt 0:03:26]} 24. Rc3 {[%emt 0:09:40]} Bb4 {[%emt 0:01:23]} 25. Rh3 {[%emt 0:00:36]} Kg7 {[%emt 0:00:39]} 26. Kf1 {[%emt 0:02:11]} Bc5 {[%emt 0:06:34]} 27. Rdd3 {[%emt 0:08:04]} Re7 {[%emt 0:02:55]} 28. Rh5 {[%emt 0:02:45]} Re8 {[%emt 0:24:04]} 29. Rdh3 {[%emt 0:04:16]} 1/2-1/2

[Event "2nd Cambridge Open 2024"]
[Site "Cambridge"]
[Date "2024.02.22"]
[Round "6.33"]
[White "Bharat Kumar, Balahari"]
[Black "Jefremov, Aivar"]
[Result "1/2-1/2"]
[ECO "E11"]
[WhiteElo "1995"]
[BlackElo "1656"]
[Annotator "RC"]
[PlyCount "160"]
[EventDate "2024.02.18"]
[EventType "swiss"]
[EventCountry "ENG"]
[SourceTitle "playchess.com"]
[Source "ChessBase"]
[SourceQuality "1"]
[TimeControl "5400+30"]

1. d4 {[%emt 0:00:05]} e6 {[%emt 0:06:46]} 2. c4 {[%emt 0:00:13]} Nf6 {[%emt 0:00:14]} 3. Nf3 {[%emt 0:00:08]} Bb4+ {[%emt 0:00:22]} 4. Bd2 {[%emt 0:00:38]} Bxd2+ {[%emt 0:00:07]} 5. Nbxd2 {[%emt 0:01:07]} O-O {[%emt 0:00:12]} 6. e4 {[%emt 0:01:19]} d5 {[%emt 0:02:47]} 7. Bd3 {[%emt 0:12:21]} dxe4 {[%emt 0:02:12]} 8. Nxe4 {[%emt 0:01:39]} Nxe4 {[%emt 0:03:44]} 9. Bxe4 {[%emt 0:00:11]} Nd7 {[%emt 0:00:11]} 10. O-O {[%emt 0:01:08]} Nf6 {[%emt 0:00:26]} 11. Bc2 {[%emt 0:00:53]} b6 {[%emt 0:01:04]} 12. Qd3 {[%emt 0:01:24]} Bb7 {[%emt 0:02:27]} 13. Rad1 {[%emt 0:10:17]} Be4 {[%emt 0:04:22]} 14. Qe2 {[%emt 0:04:08]} Bxc2 {[%emt 0:02:12]} 15. Qxc2 {[%emt 0:00:04]} Qd6 {[%emt 0:00:44]} 16. Rfe1 {[%emt 0:01:20]} c6 {[%emt 0:15:59]} 17. Qa4 {[%emt 0:19:07]} Rfb8 {[%emt 0:07:16]} 18. Ne5 {[%emt 0:20:11]} b5 {[%emt 0:01:21]} 19. Qa6 {[%emt 0:00:20]} bxc4 {[%emt 0:04:19]} 20. Nxc4 {[%emt 0:03:14]} Qb4 {[%emt 0:00:59]} 21. b3 {[%emt 0:03:07]} Qb5 {[%emt 0:01:37]} 22. Qa3 {[%emt 0:00:46]} a5 {[%emt 0:00:34]} 23. Nb2 {[%emt 0:10:25]} Nd5 {[%emt 0:05:09]} 24. Na4 {[%emt 0:02:33]} Nb4 {[%emt 0:00:28]} 25. Rd2 {[%emt 0:01:16]} Qf5 {[%emt 0:07:18]} 26. Red1 {[%emt 0:01:25]} Rd8 {[%emt 0:00:54]} 27. Qc1 {[%emt 0:01:06]} Rd6 {[%emt 0:05:40]} 28. Qc5 {[%emt 0:01:07]} Rd5 {[%emt 0:03:24]} 29. Qc4 {[%emt 0:00:15]} Rd6 {[%emt 0:00:29]} 30. Qc5 {[%emt 0:01:27]} Rd5 {[%emt 0:00:21]} 31. Qc4 {[%emt 0:00:07]} Rd6 {[%emt 0:00:13]} 32. Nc5 {[%emt 0:01:04]} e5 {[%emt 0:06:19]} 33. a3 {[%emt 0:01:20]} Nd5 {[%emt 0:00:45]} 34. dxe5 {[%emt 0:00:17]} Qxe5 {[%emt 0:00:36]} 35. g3 {[%emt 0:01:13]} h6 {[%emt 0:02:29]} 36. Nd3 {[%emt 0:00:39]} Qg5 {[%emt 0:00:45]} 37. Nf4 {[%emt 0:00:16]} Rad8 {[%emt 0:01:18]} 38. h4 {[%emt 0:00:32]} Qe5 {[%emt 0:02:02]} 39. Nxd5 {[%emt 0:00:32]} Rxd5 {[%emt 0:00:41]} 40. Rxd5 {[%emt 0:00:08]} cxd5 {[%emt 0:01:22]} 41. Qc5 {[%emt 0:00:32]} Qe2 {[%emt 0:00:55]} 42. Rd4 {[%emt 0:00:21]} Qe5 {[%emt 0:02:50]} 43. b4 {[%emt 0:00:36]} axb4 {[%emt 0:00:10]} 44. axb4 {[%emt 0:00:08]} Ra8 {[%emt 0:01:07]} 45. Rxd5 {[%emt 0:01:23]} Ra1+ {[%emt 0:00:45]} 46. Kh2 {[%emt 0:00:12]} Qe4 {[%emt 0:04:02]} 47. Qc8+ {[%emt 0:00:22]} Kh7 {[%emt 0:00:05]} 48. Qf5+ {[%emt 0:00:06]} Qxf5 {[%emt 0:00:14]} 49. Rxf5 {[%emt 0:00:04]} Kg6 {[%emt 0:00:27]} 50. Rf4 {[%emt 0:00:32]} Rb1 {[%emt 0:00:24]} 51. Kg2 {[%emt 0:00:07]} f6 {[%emt 0:00:33]} 52. Kf3 {[%emt 0:00:10]} Kf7 {[%emt 0:00:11]} 53. h5 {[%emt 0:00:35]} Ke6 {[%emt 0:01:59]} 54. g4 {[%emt 0:02:24]} f5 {[%emt 0:01:53]} 55. gxf5+ {[%emt 0:00:24]} Ke5 {[%emt 0:00:07]} 56. Rg4 {[%emt 0:00:38]} Kxf5 {[%emt 0:01:31]} 57. Rxg7 {[%emt 0:00:06]} Rxb4 {[%emt 0:00:09]} 58. Rg6 {[%emt 0:00:21]} Rb3+ {[%emt 0:00:13]} 59. Kg2 {[%emt 0:00:12]} Rb5 {[%emt 0:01:18]} 60. Rxh6 {[%emt 0:00:13]} Kg4 {[%emt 0:00:08]} 61. Rh8 {[%emt 0:00:26]} Rb6 {[%emt 0:01:18]} 62. h6 {[%emt 0:00:11]} Kg5 {[%emt 0:00:06]} 63. Kg3 {[%emt 0:01:26]} Rb3+ {[%emt 0:00:18]} 64. f3 {[%emt 0:00:07]} Ra3 {[%emt 0:00:19]} 65. h7 {[%emt 0:01:06]} Kg6 {[%emt 0:00:01]} 66. Rg8+ {[%emt 0:00:07]} Kxh7 {[%emt 0:00:13]} 67. Rg4 {[%emt 0:00:03]} Rb3 {[%emt 0:00:32]} 68. Kf4 {[%emt 0:00:13]} Rb4+ {[%emt 0:00:21]} 69. Kf5 {[%emt 0:00:16]} Rb5+ {[%emt 0:00:11]} 70. Kf6 {[%emt 0:00:42]} Rb6+ {[%emt 0:00:11]} 71. Kg5 {[%emt 0:00:21]} Kg7 {[%emt 0:00:51]} 72. Kf5+ {[%emt 0:00:47]} Kf7 {[%emt 0:00:06]} 73. Ra4 {[%emt 0:00:31]} Rb5+ {[%emt 0:00:24]} 74. Kg4 {[%emt 0:00:05]} Kf6 {[%emt 0:00:33]} 75. Ra6+ {[%emt 0:00:07]} Kf7 {[%emt 0:00:07]} 76. f4 {[%emt 0:00:04]} Rc5 {[%emt 0:00:12]} 77. f5 {[%emt 0:00:35]} Rc1 {[%emt 0:00:09]} 78. Ra4 {[%emt 0:00:14]} Rg1+ {[%emt 0:00:09]} 79. Kf4 {[%emt 0:00:06]} Rf1+ {[%emt 0:00:06]} 80. Kg5 {[%emt 0:00:08]} Rg1+ {[%emt 0:00:09]} 1/2-1/2

[Event "2nd Cambridge Open 2024"]
[Site "Cambridge"]
[Date "2024.02.22"]
[Round "6.34"]
[White "Wynarczyk, Raymond"]
[Black "Ward, Ieuan C"]
[Result "0-1"]
[ECO "B22"]
[WhiteElo "1703"]
[BlackElo "2028"]
[Annotator "NA RC"]
[PlyCount "44"]
[EventDate "2024.02.18"]
[EventType "swiss"]
[EventCountry "ENG"]
[SourceTitle "playchess.com"]
[Source "ChessBase"]
[SourceQuality "1"]
[TimeControl "5400+30"]

1. e4 {[%emt 0:00:04]} c5 {[%emt 0:00:10]} 2. c3 {[%emt 0:00:21]} d5 {[%emt 0:00:08]} 3. exd5 {[%emt 0:00:08]} Qxd5 {[%emt 0:00:04]} 4. d4 {[%emt 0:00:11]} Nc6 {[%emt 0:00:19]} 5. Nf3 {[%emt 0:00:09]} e6 {[%emt 0:00:41]} 6. Be3 {[%emt 0:01:31]} cxd4 {[%emt 0:00:43]} 7. Nxd4 {[%emt 0:03:01]} a6 {[%emt 0:09:30]} 8. Qb3 {[%emt 0:05:00]} Nf6 {[%emt 0:12:10]} 9. Nd2 {[%emt 0:05:37]} Be7 {[%emt 0:13:57]} 10. N2f3 {[%emt 0:07:42]} Qxb3 {[%emt 0:01:02]} 11. axb3 {[%emt 0:01:15]} Nxd4 {[%emt 0:03:00]} 12. Nxd4 {[%emt 0:00:47]} O-O {[%emt 0:00:41]} 13. g3 {[%emt 0:03:36]} Ng4 {[%emt 0:02:46]} 14. Bd2 {[%emt 0:01:53]} e5 {[%emt 0:05:54]} 15. Nc2 {[%emt 0:06:32]} Rd8 {[%emt 0:19:42]} 16. Rd1 {[%emt 0:04:59]} Bf5 {[%emt 0:01:43]} 17. Ne3 {[%emt 0:02:00]} Be4 {[%emt 0:00:22]} 18. Ng2 {[%emt 0:13:01]} Bf3 {[%emt 0:01:20]} 19. Rb1 {[%emt 0:05:27]} Rxd2 {[%emt 0:04:31]} 20. Kxd2 {[%emt 0:00:43]} Rd8+ {[%emt 0:00:03]} 21. Kc2 {[%emt 0:05:38]} Be4+ {[%emt 0:00:49]} 22. Kc1 {[%emt 0:00:22]} Nxf2 {[%emt 0:00:25]} 0-1

[Event "2nd Cambridge Open 2024"]
[Site "Cambridge"]
[Date "2024.02.22"]
[Round "6.35"]
[White "Evans, Ruben"]
[Black "Mihalik, Agoston"]
[Result "1/2-1/2"]
[ECO "D52"]
[WhiteElo "1647"]
[BlackElo "2146"]
[Annotator "RC"]
[PlyCount "59"]
[EventDate "2024.02.18"]
[EventType "swiss"]
[EventCountry "ENG"]
[SourceTitle "playchess.com"]
[Source "ChessBase"]
[SourceQuality "1"]
[TimeControl "5400+30"]

1. d4 {[%emt 0:00:01]} Nf6 {[%emt 0:01:52]} 2. c4 {[%emt 0:00:02]} e6 {[%emt 0:00:06]} 3. Nf3 {[%emt 0:00:04]} d5 {[%emt 0:00:40]} 4. Nc3 {[%emt 0:00:06]} Nbd7 {[%emt 0:00:18]} 5. Bg5 {[%emt 0:00:06]} c6 {[%emt 0:00:16]} 6. e3 {[%emt 0:00:31]} Qa5 {[%emt 0:00:18]} 7. Nd2 {[%emt 0:00:09]} Bb4 {[%emt 0:00:57]} 8. Rc1 {[%emt 0:01:04]} O-O {[%emt 0:03:04]} 9. a3 {[%emt 0:01:26]} Bxc3 {[%emt 0:06:26]} 10. Rxc3 {[%emt 0:00:18]} dxc4 {[%emt 0:07:11]} 11. Bxf6 {[%emt 0:00:23]} Nxf6 {[%emt 0:00:06]} 12. Nxc4 {[%emt 0:00:17]} Qd5 {[%emt 0:00:55]} 13. f3 {[%emt 0:00:56]} c5 {[%emt 0:03:59]} 14. dxc5 {[%emt 0:00:08]} Qxc5 {[%emt 0:00:11]} 15. e4 {[%emt 0:00:17]} Qg5 {[%emt 0:21:06]} 16. Kf2 {[%emt 0:14:58]} Bd7 {[%emt 0:04:23]} 17. h4 {[%emt 0:06:52]} Qb5 {[%emt 0:02:56]} 18. g4 {[%emt 0:15:46]} Bc6 {[%emt 0:06:34]} 19. Qc2 {[%emt 0:04:05]} Rad8 {[%emt 0:02:31]} 20. Be2 {[%emt 0:15:14]} Rd4 {[%emt 0:06:12]} 21. Qb3 {[%emt 0:11:56]} Rfd8 {[%emt 0:05:37]} 22. Qxb5 {[%emt 0:02:41]} Bxb5 {[%emt 0:00:03]} 23. Rhc1 {[%emt 0:03:12]} g6 {[%emt 0:05:18]} 24. Ke3 {[%emt 0:03:10]} h5 {[%emt 0:07:50]} 25. e5 {[%emt 0:08:33]} Bxc4 {[%emt 0:00:53]} 26. Bxc4 {[%emt 0:00:26]} Ne8 {[%emt 0:00:31]} 27. gxh5 {[%emt 0:01:34]} gxh5 {[%emt 0:13:47]} 28. Rd3 {[%emt 0:00:40]} Rxd3+ {[%emt 0:00:00]} 29. Bxd3 {[%emt 0:00:02]} Kf8 {[%emt 0:00:00]} 30. Be4 {[%emt 0:02:46]} 1/2-1/2

[Event "2nd Cambridge Open 2024"]
[Site "Cambridge"]
[Date "2024.02.22"]
[Round "6.36"]
[White "Crocker, Philip J"]
[Black "De Coverly, Roger D"]
[Result "1/2-1/2"]
[ECO "E62"]
[WhiteElo "2137"]
[BlackElo "1893"]
[Annotator "RC"]
[PlyCount "178"]
[EventDate "2024.02.18"]
[EventType "swiss"]
[EventCountry "ENG"]
[SourceTitle "playchess.com"]
[Source "ChessBase"]
[SourceQuality "1"]
[TimeControl "5400+30"]

1. c4 {[%emt 0:00:03]} Nf6 {[%emt 0:00:09]} 2. g3 {[%emt 0:00:12]} g6 {[%emt 0:00:10]} 3. Bg2 {[%emt 0:00:05]} Bg7 {[%emt 0:00:06]} 4. Nc3 {[%emt 0:00:06]} d6 {[%emt 0:00:16]} 5. d4 {[%emt 0:00:30]} O-O {[%emt 0:00:16]} 6. h3 {[%emt 0:00:31]} Nc6 {[%emt 0:01:07]} 7. Nf3 {[%emt 0:01:33]} e5 {[%emt 0:00:47]} 8. Be3 {[%emt 0:00:51]} Re8 {[%emt 0:04:26]} 9. dxe5 {[%emt 0:01:33]} Nxe5 {[%emt 0:01:55]} 10. b3 {[%emt 0:02:04]} Nh5 {[%emt 0:03:58]} 11. Nxe5 {[%emt 0:04:17]} Bxe5 {[%emt 0:01:30]} 12. Bd4 {[%emt 0:07:59]} c6 {[%emt 0:05:48]} 13. O-O {[%emt 0:02:26]} Qe7 {[%emt 0:03:30]} 14. Qd2 {[%emt 0:03:32]} Ng7 {[%emt 0:03:28]} 15. Rad1 {[%emt 0:05:28]} Nf5 {[%emt 0:03:21]} 16. Bxe5 {[%emt 0:01:45]} dxe5 {[%emt 0:00:18]} 17. Ne4 {[%emt 0:05:16]} Nd4 {[%emt 0:02:51]} 18. e3 {[%emt 0:01:50]} Ne6 {[%emt 0:01:43]} 19. Qc3 {[%emt 0:03:43]} Nc5 {[%emt 0:06:05]} 20. Nxc5 {[%emt 0:01:22]} Qxc5 {[%emt 0:00:09]} 21. b4 {[%emt 0:00:37]} Qe7 {[%emt 0:01:37]} 22. c5 {[%emt 0:00:31]} e4 {[%emt 0:10:59]} 23. Rd4 {[%emt 0:01:29]} f5 {[%emt 0:00:34]} 24. Rfd1 {[%emt 0:01:24]} Be6 {[%emt 0:02:22]} 25. Bf1 {[%emt 0:01:31]} Rad8 {[%emt 0:01:49]} 26. Bc4 {[%emt 0:05:14]} Rxd4 {[%emt 0:01:17]} 27. Rxd4 {[%emt 0:01:46]} Qf7 {[%emt 0:01:44]} 28. Bxe6 {[%emt 0:00:59]} Qxe6 {[%emt 0:00:19]} 29. Rd6 {[%emt 0:01:40]} Qf7 {[%emt 0:04:56]} 30. Qd4 {[%emt 0:02:12]} Re7 {[%emt 0:01:26]} 31. a4 {[%emt 0:03:13]} a6 {[%emt 0:06:01]} 32. h4 {[%emt 0:00:22]} h5 {[%emt 0:02:47]} 33. Rf6 {[%emt 0:02:49]} Qe8 {[%emt 0:03:47]} 34. Rd6 {[%emt 0:00:30]} Qf7 {[%emt 0:00:41]} 35. Kg2 {[%emt 0:00:24]} Qg7 {[%emt 0:25:48]} 36. Rd8+ {[%emt 0:01:21]} Kh7 {[%emt 0:00:00]} 37. Qd6 {[%emt 0:00:31]} Rf7 {[%emt 0:00:00]} 38. Qe6 {[%emt 0:01:01]} Re7 {[%emt 0:00:00]} 39. Qd6 {[%emt 0:00:47]} Rf7 {[%emt 0:00:00]} 40. Qd2 {[%emt 0:00:55]} Qf6 {[%emt 0:00:00]} 41. Rd6 {[%emt 0:00:22]} Qg7 {[%emt 0:00:00]} 42. Qa2 {[%emt 0:03:43]} Re7 {[%emt 0:00:00]} 43. Qc4 {[%emt 0:00:19]} Qf7 {[%emt 0:00:00]} 44. Qc2 {[%emt 0:01:36]} Qg7 {[%emt 0:00:00]} 45. Qd1 {[%emt 0:00:33]} Rf7 {[%emt 0:00:00]} 46. Rd8 {[%emt 0:02:56]} Re7 {[%emt 0:00:00]} 47. Qd6 {[%emt 0:00:37]} Rf7 {[%emt 0:00:00]} 48. Qe6 {[%emt 0:04:03]} Re7 {[%emt 0:00:00]} 49. Qc4 {[%emt 0:01:34]} Qf7 {[%emt 0:00:00]} 50. Qd4 {[%emt 0:00:25]} Qg7 {[%emt 0:00:00]} 51. Kf1 {[%emt 0:00:56]} Qxd4 {[%emt 0:00:00]} 52. exd4 {[%emt 0:00:13]} Kg7 {[%emt 0:00:00]} 53. Ke2 {[%emt 0:00:27]} Kf6 {[%emt 0:00:00]} 54. Ke3 {[%emt 0:00:26]} Ke6 {[%emt 0:00:00]} 55. Kf4 {[%emt 0:01:10]} Kf6 {[%emt 0:00:00]} 56. d5 {[%emt 0:03:33]} cxd5 {[%emt 0:00:00]} 57. Rxd5 {[%emt 0:00:15]} e3 {[%emt 0:00:00]} 58. Rd6+ {[%emt 0:00:37]} Kf7 {[%emt 0:00:00]} 59. fxe3 {[%emt 0:00:34]} Re4+ {[%emt 0:00:00]} 60. Kg5 {[%emt 0:02:00]} Rxb4 {[%emt 0:01:27]} 61. Rf6+ {[%emt 0:02:04]} Ke7 {[%emt 0:00:31]} 62. Kxg6 {[%emt 0:03:40]} Rxa4 {[%emt 0:02:06]} 63. Rb6 {[%emt 0:00:29]} Rg4+ {[%emt 0:01:32]} 64. Kxf5 {[%emt 0:00:19]} Rxg3 {[%emt 0:00:44]} 65. Rxb7+ {[%emt 0:00:26]} Kd8 {[%emt 0:01:23]} 66. Ra7 {[%emt 0:04:19]} Rxe3 {[%emt 0:00:13]} 67. Rxa6 {[%emt 0:00:46]} Rc3 {[%emt 0:00:27]} 68. Ra5 {[%emt 0:00:33]} Rg3 {[%emt 0:00:48]} 69. Ke6 {[%emt 0:00:47]} Rg6+ {[%emt 0:01:34]} 70. Kd5 {[%emt 0:00:18]} Rg4 {[%emt 0:01:08]} 71. Kc6 {[%emt 0:00:26]} Rxh4 {[%emt 0:00:24]} 72. Ra8+ {[%emt 0:00:18]} Ke7 {[%emt 0:00:06]} 73. Rh8 {[%emt 0:00:49]} Rh1 {[%emt 0:00:21]} 74. Kc7 {[%emt 0:00:24]} h4 {[%emt 0:00:19]} 75. c6 {[%emt 0:00:28]} h3 {[%emt 0:00:47]} 76. Rh7+ {[%emt 0:01:45]} Ke8 {[%emt 0:00:42]} 77. Kb8 {[%emt 0:01:53]} h2 {[%emt 0:00:39]} 78. c7 {[%emt 0:05:53]} Rb1+ {[%emt 0:00:13]} 79. Ka7 {[%emt 0:01:00]} Ra1+ {[%emt 0:00:16]} 80. Kb6 {[%emt 0:01:14]} Rb1+ {[%emt 0:00:14]} 81. Kc5 {[%emt 0:01:26]} Rc1+ {[%emt 0:00:31]} 82. Kd6 {[%emt 0:00:20]} Rd1+ {[%emt 0:00:14]} 83. Ke6 {[%emt 0:00:47]} Re1+ {[%emt 0:00:14]} 84. Kd5 {[%emt 0:00:37]} Rd1+ {[%emt 0:00:25]} 85. Ke4 {[%emt 0:00:29]} Rc1 {[%emt 0:00:16]} 86. Rxh2 {[%emt 0:00:35]} Rxc7 {[%emt 0:00:07]} 87. Rh8+ {[%emt 0:00:06]} Kd7 {[%emt 0:00:08]} 88. Rh7+ {[%emt 0:00:02]} Kd8 {[%emt 0:00:07]} 89. Rxc7 {[%emt 0:00:04]} Kxc7 {[%emt 0:00:04]} 1/2-1/2

[Event "2nd Cambridge Open 2024"]
[Site "Cambridge"]
[Date "2024.02.22"]
[Round "6.37"]
[White "Mata, Adilson"]
[Black "Ismail, Mohammed Aayan"]
[Result "0-1"]
[ECO "A14"]
[WhiteElo "1924"]
[BlackElo "2115"]
[Annotator "RC"]
[PlyCount "61"]
[EventDate "2024.02.18"]
[EventType "swiss"]
[EventCountry "ENG"]
[SourceTitle "playchess.com"]
[Source "ChessBase"]
[SourceQuality "1"]
[TimeControl "5400+30"]

1. c4 {[%emt 0:05:05]} Nf6 {[%emt 0:00:10]} 2. g3 {[%emt 0:00:59]} e6 {[%emt 0:00:55]} 3. Bg2 {[%emt 0:01:00]} d5 {[%emt 0:00:05]} 4. Nf3 {[%emt 0:06:30]} Be7 {[%emt 0:02:29]} 5. O-O {[%emt 0:00:32]} O-O {[%emt 0:00:04]} 6. b3 {[%emt 0:02:10]} Nbd7 {[%emt 0:03:49]} 7. Bb2 {[%emt 0:01:53]} b6 {[%emt 0:02:03]} 8. Qc2 {[%emt 0:06:49]} Bb7 {[%emt 0:04:17]} 9. cxd5 {[%emt 0:05:16]} exd5 {[%emt 0:11:20]} 10. Nd4 {[%emt 0:03:51]} c5 {[%emt 0:02:58]} 11. Nf5 {[%emt 0:00:08]} Re8 {[%emt 0:02:23]} 12. Nxe7+ {[%emt 0:00:40]} Qxe7 {[%emt 0:00:08]} 13. e3 {[%emt 0:00:47]} Rac8 {[%emt 0:09:09]} 14. d3 {[%emt 0:09:00]} Ne5 {[%emt 0:03:58]} 15. Na3 {[%emt 0:06:13]} Qe6 {[%emt 0:08:01]} 16. h3 {[%emt 0:06:27]} h5 {[%emt 0:11:10]} 17. Rfd1 {[%emt 0:10:58]} Qf5 {[%emt 0:07:51]} 18. d4 {[%emt 0:01:03]} Nf3+ {[%emt 0:01:37]} 19. Kh1 {[%emt 0:02:19]} Ne4 {[%emt 0:00:42]} 20. Qe2 {[%emt 0:07:54]} Nxd4 {[%emt 0:02:19]} 21. Bxd4 {[%emt 0:07:49]} Nxf2+ {[%emt 0:01:42]} 22. Kh2 {[%emt 0:00:37]} Nxd1 {[%emt 0:00:12]} 23. Qxd1 {[%emt 0:04:19]} cxd4 {[%emt 0:00:06]} 24. Nb5 {[%emt 0:00:09]} Qg6 {[%emt 0:06:55]} 25. Qxd4 {[%emt 0:00:53]} Rc2 {[%emt 0:01:31]} 26. Nc3 {[%emt 0:01:06]} Rxe3 {[%emt 0:02:13]} 27. Qxe3 {[%emt 0:06:42]} Rxg2+ {[%emt 0:00:05]} 28. Kh1 {[%emt 0:00:24]} Qc2 {[%emt 0:01:18]} 29. Qf3 {[%emt 0:01:04]} d4 {[%emt 0:00:09]} 30. Qxb7 {[%emt 0:01:12]} Rh2+ {[%emt 0:00:05]} 31. Kg1 {[%emt 0:00:50]} 0-1

[Event "2nd Cambridge Open 2024"]
[Site "Cambridge"]
[Date "2024.02.22"]
[Round "6.38"]
[White "Simpson, Ben"]
[Black "Waller, Dan"]
[Result "0-1"]
[ECO "A90"]
[WhiteElo "1873"]
[BlackElo "2126"]
[Annotator "RC"]
[PlyCount "88"]
[EventDate "2024.02.18"]
[EventType "swiss"]
[EventCountry "ENG"]
[SourceTitle "playchess.com"]
[Source "ChessBase"]
[SourceQuality "1"]
[TimeControl "5400+30"]

1. d4 {[%emt 0:00:02]} f5 {[%emt 0:00:11]} 2. Nf3 {[%emt 0:00:05]} e6 {[%emt 0:00:12]} 3. c4 {[%emt 0:00:28]} Nf6 {[%emt 0:00:07]} 4. g3 {[%emt 0:00:24]} d5 {[%emt 0:00:36]} 5. Bg2 {[%emt 0:00:09]} c6 {[%emt 0:00:14]} 6. O-O {[%emt 0:00:45]} Bd6 {[%emt 0:00:03]} 7. b3 {[%emt 0:04:04]} Qe7 {[%emt 0:00:07]} 8. a4 {[%emt 0:01:58]} a5 {[%emt 0:00:29]} 9. Ba3 {[%emt 0:00:50]} Bxa3 {[%emt 0:01:33]} 10. Nxa3 {[%emt 0:00:04]} Nbd7 {[%emt 0:03:44]} 11. Nc2 {[%emt 0:01:04]} b6 {[%emt 0:05:53]} 12. Nce1 {[%emt 0:10:33]} Ba6 {[%emt 0:03:23]} 13. Rc1 {[%emt 0:01:00]} c5 {[%emt 0:01:48]} 14. Nd3 {[%emt 0:06:22]} dxc4 {[%emt 0:07:17]} 15. bxc4 {[%emt 0:01:39]} Rd8 {[%emt 0:00:13]} 16. Nfe5 {[%emt 0:03:01]} Nxe5 {[%emt 0:02:44]} 17. dxe5 {[%emt 0:00:14]} Ng4 {[%emt 0:09:30]} 18. Qb3 {[%emt 0:02:22]} Qc7 {[%emt 0:00:35]} 19. h3 {[%emt 0:05:14]} Nh6 {[%emt 0:00:19]} 20. Rb1 {[%emt 0:05:05]} Rb8 {[%emt 0:01:00]} 21. Rfd1 {[%emt 0:02:46]} Nf7 {[%emt 0:00:26]} 22. Qc3 {[%emt 0:00:22]} O-O {[%emt 0:02:27]} 23. Rd2 {[%emt 0:06:33]} Rfd8 {[%emt 0:02:13]} 24. f4 {[%emt 0:04:17]} Qd7 {[%emt 0:07:22]} 25. Nxc5 {[%emt 0:14:22]} Qxd2 {[%emt 0:01:38]} 26. Qxd2 {[%emt 0:00:06]} Rxd2 {[%emt 0:00:03]} 27. Nxa6 {[%emt 0:00:06]} Rbd8 {[%emt 0:05:12]} 28. Kf2 {[%emt 0:02:34]} Rc2 {[%emt 0:03:54]} 29. Rxb6 {[%emt 0:02:05]} Rxc4 {[%emt 0:00:07]} 30. h4 {[%emt 0:00:47]} Nh6 {[%emt 0:02:19]} 31. Bf3 {[%emt 0:00:22]} Ng4+ {[%emt 0:04:28]} 32. Bxg4 {[%emt 0:00:02]} fxg4 {[%emt 0:00:10]} 33. Rxe6 {[%emt 0:01:13]} Kf7 {[%emt 0:03:00]} 34. Rb6 {[%emt 0:00:37]} Rdc8 {[%emt 0:02:31]} 35. Rb7+ {[%emt 0:02:17]} Kf8 {[%emt 0:02:21]} 36. Nb8 {[%emt 0:11:49]} Rb4 {[%emt 0:04:06]} 37. Nd7+ {[%emt 0:00:53]} Ke8 {[%emt 0:00:11]} 38. Ra7 {[%emt 0:00:11]} Re4 {[%emt 0:00:35]} 39. Nb6 {[%emt 0:03:13]} Rc2 {[%emt 0:00:34]} 40. Ra8+ {[%emt 0:00:11]} Kf7 {[%emt 0:00:25]} 41. Ra7+ {[%emt 0:02:13]} Kg6 {[%emt 0:00:10]} 42. Ke1 {[%emt 0:02:41]} Rexe2+ {[%emt 0:00:43]} 43. Kd1 {[%emt 0:00:01]} Red2+ {[%emt 0:00:13]} 44. Ke1 {[%emt 0:00:05]} Rh2 {[%emt 0:00:07]} 0-1